fUST/lending_fUST_20251215
["ID","MTS","AMOUNT","RATE_DAILY","PERIOD"]
[398509109,1765765850401,-476.222899,0.00021918,2]
[398509110,1765765850411,-476.222892,0.00021918,2]
[398509111,1765765850420,-152.839809,0.00021918,2]
[398509112,1765765850430,-152.519737,0.00021918,2]
[398509113,1765765850440,-151.0,0.00021918,2]
[398509114,1765765850450,-151.0,0.00021918,2]
[398509115,1765765850459,-151.0,0.00021918,2]
[398509116,1765765850469,-151.0,0.00021918,2]
[398509117,1765765850479,-151.0,0.00021918,2]
[398509118,1765765850489,-151.0,0.00021918,2]
[398509119,1765765850498,-151.0,0.00021918,2]
[398509120,1765765850507,-293.94655,0.00021918,2]
[398509121,1765765850516,-159.511931,0.00021918,2]
[398509122,1765765850525,-731.601512,0.00021918,2]
[398509123,1765765850534,-731.601512,0.00021918,2]
[398509124,1765765850543,-731.601512,0.00021918,2]
[398509125,1765765850553,-731.601512,0.00021918,2]
[398509126,1765765850561,-151.0,0.00021918,2]
[398509127,1765765850570,-731.601512,0.00021918,2]
[398509128,1765765850579,-151.0,0.00021918,2]
[398509129,1765765850588,-731.601512,0.00021918,2]
[398509130,1765765850598,-151.0,0.00021918,2]
[398509131,1765765850607,-731.601512,0.00021918,2]
[398509132,1765765850616,-151.0,0.00021918,2]
[398509133,1765765850687,-731.601512,0.00021918,2]
[398509134,1765765850697,-151.0,0.00021918,2]
[398509135,1765765850706,-151.0,0.00021918,2]
[398509136,1765765850716,-731.601512,0.00021918,2]
[398509137,1765765850727,-248.929855,0.00021918,2]
[398509138,1765765850736,-731.601512,0.00021918,2]
[398509139,1765765850746,-731.601512,0.00021918,2]
[398509140,1765765850755,-731.601512,0.00021918,2]
[398509141,1765765850764,-731.601512,0.00021918,2]
[398509142,1765765850773,-731.601512,0.00021918,2]
[398509143,1765765850783,-731.601512,0.00021918,2]
[398509144,1765765850793,-731.601512,0.00021918,2]
[398509145,1765765850802,-731.601512,0.00021918,2]
[398509146,1765765850811,-731.601512,0.00021918,2]
[398509147,1765765850820,-731.601512,0.00021918,2]
[398509148,1765765850829,-731.60150747,0.00021918,2]
[398509149,1765765850839,-153.36033,0.00021918,2]
[398509150,1765765850848,-151.0,0.00021918,2]
[398509151,1765765850857,-159.669471,0.00021918,2]
[398509152,1765765850866,-151.0,0.00021918,2]
[398509153,1765765850874,-151.0,0.00021918,2]
[398509154,1765765850883,-151.0,0.00021918,2]
[398509155,1765765850893,-151.0,0.00021918,2]
[398509156,1765765850902,-209.85561,0.00021918,2]
[398509157,1765765850911,-151.0,0.00021918,2]
[398509158,1765765850920,-171.719251,0.00021918,2]
[398509159,1765765850931,-151.0,0.00021918,2]
[398509160,1765765850942,-175.949138,0.00021918,2]
[398509161,1765765850951,-171.719251,0.00021918,2]
[398509162,1765765850960,-171.719251,0.00021918,2]
[398509163,1765765850970,-171.719251,0.00021918,2]
[398509164,1765765850979,-171.719251,0.00021918,2]
[398509165,1765765850989,-171.719251,0.00021918,2]
[398509166,1765765850998,-171.719251,0.00021918,2]
[398509167,1765765851007,-171.719251,0.00021918,2]
[398509168,1765765851016,-171.719251,0.00021918,2]
[398509169,1765765851025,-171.719251,0.00021918,2]
[398509170,1765765851035,-171.719251,0.00021918,2]
[398509171,1765765851045,-171.719251,0.00021918,2]
[398509172,1765765851054,-171.719251,0.00021918,2]
[398509173,1765765851064,-171.719251,0.00021918,2]
[398509174,1765765851073,-171.719251,0.00021918,2]
[398509175,1765765851082,-171.719251,0.00021918,2]
[398509176,1765765851091,-171.719251,0.00021918,2]
[398509177,1765765851101,-171.719251,0.00021918,2]
[398509178,1765765851110,-171.719251,0.00021918,2]
[398509179,1765765851119,-171.719259,0.00021918,2]
[398509180,1765765851128,-151.0,0.00021918,2]
[398509181,1765765851137,-151.0,0.00021918,2]
[398509182,1765765851146,-151.0,0.00021918,2]
[398509183,1765765851155,-151.0,0.00021918,2]
[398509184,1765765851164,-151.0,0.00021918,2]
[398509185,1765765851173,-151.0,0.00021918,2]
[398509186,1765765851182,-151.0,0.00021918,2]
[398509187,1765765851191,-151.0,0.00021918,2]
[398509188,1765765851200,-151.0,0.00021918,2]
[398509189,1765765851210,-151.0,0.00021918,2]
[398509190,1765765851220,-151.0,0.00021918,2]
[398509191,1765765851231,-151.0,0.00021918,2]
[398509192,1765765851240,-276.866385,0.00021918,2]
[398509193,1765765851249,-151.0,0.00021918,2]
[398509194,1765765851259,-151.0,0.00021918,2]
[398509195,1765765851268,-151.0,0.00021918,2]
[398509196,1765765851278,-151.0,0.00021918,2]
[398509197,1765765851287,-151.0,0.00021918,2]
[398509198,1765765851296,-151.0,0.00021918,2]
[398509199,1765765851305,-151.0,0.00021918,2]
[398509200,1765765851315,-151.0,0.00021918,2]
[398509201,1765765851324,-151.0,0.00021918,2]
[398509202,1765765851334,-151.0,0.00021918,2]
[398509203,1765765851344,-169.969026,0.00021918,2]
[398509204,1765765851354,-151.0,0.00021918,2]
[398509205,1765765851363,-151.0,0.00021918,2]
[398509206,1765765851373,-151.0,0.00021918,2]
[398509207,1765765851382,-151.0,0.00021918,2]
[398509208,1765765851394,-151.0,0.00021918,2]
[398509209,1765765851404,-151.0,0.00021918,2]
[398509210,1765765851413,-151.0,0.00021918,2]
[398509211,1765765851424,-151.0,0.00021918,2]
[398509212,1765765851434,-151.0,0.00021918,2]
[398509213,1765765851444,-151.0,0.00021918,2]
[398509214,1765765851453,-151.0,0.00021918,2]
[398509215,1765765851464,-239.000055,0.00021918,2]
[398509216,1765765851473,-151.0,0.00021918,2]
[398509217,1765765851482,-153.938309,0.00021918,2]
[398509218,1765765851490,-151.0,0.00021918,2]
[398509219,1765765851499,-151.0,0.00021918,2]
[398509220,1765765851509,-151.0,0.00021918,2]
[398509221,1765765851518,-151.0,0.00021918,2]
[398509222,1765765851527,-151.0,0.00021918,2]
[398509223,1765765851537,-151.0,0.00021918,2]
[398509224,1765765851546,-151.0,0.00021918,2]
[398509225,1765765851555,-151.0,0.00021918,2]
[398509226,1765765851564,-151.0,0.00021918,2]
[398509227,1765765851573,-151.0,0.00021918,2]
[398509228,1765765851582,-151.0,0.00021918,2]
[398509229,1765765851591,-151.0,0.00021918,2]
[398509230,1765765851600,-262.60432,0.00021918,2]
[398509231,1765765851609,-151.0,0.00021918,2]
[398509232,1765765851618,-217.232793,0.00021918,2]
[398509233,1765765851627,-151.0,0.00021918,2]
[398509234,1765765851636,-163.28538,0.00021918,2]
[398509235,1765765851645,-259.727657,0.00021918,2]
[398509236,1765765851654,-259.727657,0.00021918,2]
[398509237,1765765851662,-259.727657,0.00021918,2]
[398509238,1765765851671,-259.727657,0.00021918,2]
[398509239,1765765851681,-259.727657,0.00021918,2]
[398509240,1765765851690,-259.727657,0.00021918,2]
[398509241,1765765851700,-259.727657,0.00021918,2]
[398509242,1765765851709,-259.727657,0.00021918,2]
[398509243,1765765851721,-259.727657,0.00021918,2]
[398509244,1765765851730,-259.727657,0.00021918,2]
[398509245,1765765851742,-259.727657,0.00021918,2]
[398509246,1765765851752,-259.727657,0.00021918,2]
[398509247,1765765851761,-259.727657,0.00021918,2]
[398509248,1765765851770,-259.727657,0.00021918,2]
[398509249,1765765851779,-259.727657,0.00021918,2]
[398509250,1765765851789,-259.727657,0.00021918,2]
[398509251,1765765851798,-259.727657,0.00021918,2]
[398509252,1765765851807,-259.727657,0.00021918,2]
[398509253,1765765851818,-259.727657,0.00021918,2]
[398509254,1765765851828,-259.727665,0.00021918,2]
[398509255,1765765851838,-151.0,0.00021918,2]
[398509256,1765765851851,-151.0,0.00021918,2]
[398509257,1765765851861,-151.0,0.00021918,2]
[398509258,1765765851872,-151.0,0.00021918,2]
[398509259,1765765851881,-151.0,0.00021918,2]
[398509260,1765765851890,-151.0,0.00021918,2]
[398509261,1765765851899,-151.0,0.00021918,2]
[398509262,1765765851908,-151.0,0.00021918,2]
[398509263,1765765851917,-151.0,0.00021918,2]
[398509264,1765765851928,-151.0,0.00021918,2]
[398509265,1765765851937,-151.0,0.00021918,2]
[398509266,1765765851947,-151.0,0.00021918,2]
[398509267,1765765851957,-151.0,0.00021918,2]
[398509268,1765765851966,-151.0,0.00021918,2]
[398509269,1765765851977,-156.030996,0.00021918,2]
[398509270,1765765851986,-229.508516,0.00021918,2]
[398509271,1765765851996,-151.0,0.00021918,2]
[398509272,1765765852006,-155.588583,0.00021918,2]
[398509273,1765765852016,-151.908489,0.00021918,2]
[398509274,1765765852027,-213.946801,0.00021918,2]
[398509275,1765765852036,-153.87576,0.00021918,2]
[398509276,1765765852046,-254.745523,0.00021918,2]
[398509277,1765765852056,-254.745523,0.00021918,2]
[398509278,1765765852066,-254.745523,0.00021918,2]
[398509279,1765765852077,-254.745523,0.00021918,2]
[398509280,1765765852087,-254.745523,0.00021918,2]
[398509281,1765765852096,-254.745523,0.00021918,2]
[398509282,1765765852105,-254.745523,0.00021918,2]
[398509283,1765765852114,-254.745523,0.00021918,2]
[398509284,1765765852124,-254.745523,0.00021918,2]
[398509285,1765765852135,-254.745523,0.00021918,2]
[398509286,1765765852144,-1500.0,0.00021918,2]
[398509287,1765765852153,-150.0,0.00021918,2]
[398509288,1765765852162,-152.50361141,0.00021918,2]
[398509289,1765765852172,-152.0,0.00021918,2]
[398509290,1765765852182,-152.0,0.00021918,2]
[398509291,1765765852191,-152.0,0.00021918,2]
[398509292,1765765852200,-152.0,0.00021918,2]
[398509293,1765765852209,-152.0,0.00021918,2]
[398509294,1765765852219,-152.0,0.00021918,2]
[398509295,1765765852228,-1160.0,0.00021933,2]
[398509296,1765765852237,-2000.0,0.00021953,3]
[398509297,1765765852246,-2000.0,0.00021962,3]
[398509298,1765765852255,-2000.0,0.00021971,3]
[398509299,1765765852265,-2000.0,0.0002198,3]
[398509300,1765765852275,-2000.0,0.0002198,3]
[398509301,1765765852285,-2000.0,0.00021989,3]
[398509302,1765765852294,-2000.0,0.00021989,3]
[398509303,1765765852304,-2000.0,0.00021997,3]
[398509304,1765765852313,-2000.0,0.00021997,3]
[398509305,1765765852323,-10164.79744921,0.00022,2]
[398509306,1765765852332,-419.43677893,0.00022,2]
[398509307,1765765852342,-16500.0,0.00022,2]
[398509308,1765765852351,-20000.0,0.00022,120]
[398509309,1765765852360,-5000.0,0.00022,40]
[398509310,1765765852370,-198.08824625,0.00022,7]
[398509311,1765765852380,-199184.45024443,0.00022,20]
[398509312,1765765852392,-17925.11,0.00022,2]
[398509313,1765765852401,-2000.0,0.00022006,3]
[398509314,1765765852411,-2000.0,0.00022006,3]
[398509315,1765765852420,-2000.0,0.00022015,3]
[398509316,1765765852430,-2000.0,0.00022015,3]
[398509317,1765765852441,-2000.0,0.00022024,3]
[398509318,1765765852451,-2000.0,0.00022024,3]
[398509319,1765765852462,-2000.0,0.00022033,3]
[398509320,1765765852471,-2000.0,0.00022033,3]
[398509321,1765765852481,-2000.0,0.00022041,3]
[398509322,1765765852493,-2000.0,0.00022041,3]
[398509323,1765765852502,-2000.0,0.0002205,3]
[398509324,1765765852512,-2000.0,0.0002205,3]
[398509325,1765765852522,-2000.0,0.00022059,3]
[398509326,1765765852531,-2000.0,0.00022059,3]
[398509327,1765765852541,-2000.0,0.00022068,3]
[398509328,1765765852551,-2000.0,0.00022068,3]
[398509329,1765765852561,-2000.0,0.00022077,3]
[398509330,1765765852571,-2000.0,0.00022077,3]
[398509331,1765765852580,-2000.0,0.00022085,3]
[398509332,1765765852589,-2000.0,0.00022085,3]
[398509333,1765765852599,-2000.0,0.00022094,3]
[398509334,1765765852608,-2000.0,0.00022094,3]
[398509335,1765765852618,-2000.0,0.00022103,3]
[398509336,1765765852628,-2000.0,0.00022103,3]
[398509337,1765765852637,-2000.0,0.00022112,3]
[398509338,1765765852647,-2000.0,0.00022112,3]
[398509339,1765765852656,-2000.0,0.00022121,3]
[398509340,1765765852665,-2000.0,0.00022121,3]
[398509341,1765765852674,-2000.0,0.00022121,3]
[398509342,1765765852683,-2000.0,0.00022129,3]
[398509343,1765765852692,-2000.0,0.00022129,3]
[398509344,1765765852704,-2000.0,0.00022129,3]
[398509345,1765765852714,-2000.0,0.00022138,3]
[398509346,1765765852723,-2000.0,0.00022138,3]
[398509347,1765765852734,-2000.0,0.00022138,3]
[398509348,1765765852743,-2000.0,0.00022138,3]
[398509349,1765765852752,-2000.0,0.00022147,3]
[398509350,1765765852762,-2000.0,0.00022147,3]
[398509351,1765765852771,-2000.0,0.00022147,3]
[398509352,1765765852780,-2000.0,0.00022147,3]
[398509353,1765765852789,-2000.0,0.00022156,3]
[398509354,1765765852798,-2000.0,0.00022156,3]
[398509355,1765765852807,-2000.0,0.00022156,3]
[398509356,1765765852817,-2000.0,0.00022156,3]
[398509357,1765765852826,-2000.0,0.00022165,3]
[398509358,1765765852836,-2000.0,0.00022165,3]
[398509359,1765765852845,-2000.0,0.00022165,3]
[398509360,1765765852854,-2000.0,0.00022165,3]
[398509361,1765765852864,-2000.0,0.00022173,3]
[398509362,1765765852873,-2000.0,0.00022173,3]
[398509363,1765765852882,-2000.0,0.00022173,3]
[398509364,1765765852891,-2000.0,0.00022173,3]
[398509365,1765765852901,-2000.0,0.00022182,3]
[398509366,1765765852910,-2000.0,0.00022182,3]
[398509367,1765765852919,-2000.0,0.00022182,3]
[398509368,1765765852928,-2000.0,0.00022182,3]
[398509369,1765765852937,-2000.0,0.00022191,3]
[398509370,1765765852946,-2000.0,0.00022191,3]
[398509371,1765765852955,-2000.0,0.00022191,3]
[398509372,1765765852965,-2000.0,0.00022191,3]
[398509373,1765765852974,-1800.0,0.00022192,2]
[398509374,1765765852983,-165.68905798,0.00022278,48]
[398509375,1765765852992,-333.33333333,0.00022306,48]
[398509376,1765765853001,-313.60403607,0.00022334,48]
[398509377,1765765853011,-360.36278941,0.00022334,48]
[398509378,1765765853020,-1921.03,0.00022465,2]
[398509379,1765765853030,-399.4055127,0.00022466,2]
[398509380,1765765853040,-300.0,0.00022466,2]
[398509381,1765765853049,-1260.0,0.00022481,2]
[398509382,1765765853058,-1029.41718363,0.000225,2]
[398509383,1765765853068,-1500.0,0.000227,2]
[398509384,1765765853078,-1500.0,0.000227,2]
[398509385,1765765853087,-1500.0,0.000227,2]
[398509386,1765765853097,-1500.0,0.000227,2]
[398509387,1765765853106,-1500.0,0.000227,2]
[398509388,1765765853116,-1500.0,0.000227,2]
[398509389,1765765853126,-1500.0,0.000227,2]
[398509390,1765765853136,-1500.0,0.000227,2]
[398509391,1765765853145,-1500.0,0.000227,2]
[398509392,1765765853155,-1500.0,0.000227,2]
[398509393,1765765853164,-1500.0,0.000227,2]
[398509394,1765765853174,-555.83,0.000227,2]
[398509395,1765765853184,-1921.03,0.00022739,2]
[398509396,1765765853194,-1200.0,0.000228,2]
[398509397,1765765853203,-174.98212543,0.000228,2]
[398509398,1765765853213,-333.33333333,0.00022857,56]
[398509399,1765765853222,-360.36278941,0.00022889,56]
[398509400,1765765853231,-21807.6,0.00023,7]
[398509401,1765765853241,-440.0,0.00023,3]
[398509402,1765765853250,-5000.0,0.00023,20]
[398509403,1765765853260,-2441.20445061,0.00023,5]
[398509404,1765765853269,-183.0,0.00023,7]
[398509405,1765765853279,-26347.86,0.00023,2]
[398509406,1765765853288,-1022.51850022,0.00023,2]
[398509407,1765765853298,-1921.03,0.00023013,2]
[398509408,1765765853309,-450.0,0.00023014,2]
[398509409,1765765853320,-1360.0,0.00023029,2]
[398509410,1765765853331,-500.46,0.000231,7]
[398509411,1765765853341,-17925.11,0.000231,2]
[398509412,1765765853352,-411.41,0.000232,14]
[398509413,1765765853362,-1000.0,0.00023271,10]
[398509414,1765765853372,-492.0,0.00023271,10]
[398509415,1765765853382,-1921.03,0.00023287,2]
[398509416,1765765853395,-165.68905798,0.0002337,63]
[398509417,1765765853405,-313.60403607,0.00023445,63]
[398509418,1765765853414,-360.36278941,0.00023445,63]
[398509419,1765765853424,-160.0,0.00023507,10]
[398509420,1765765853435,-520.86003364,0.0002352,2]
[398509421,1765765853444,-6594.28028463,0.00023552,2]
[398509422,1765765853454,-1921.03,0.00023561,2]
[398509423,1765765853465,-600.0,0.00023562,2]
[398509424,1765765853475,-1460.0,0.00023577,2]
[398509425,1765765853485,-1921.03,0.00023835,2]
[398509426,1765765853495,-302.2567273,0.00023836,2]
[398509427,1765765853505,-198.08824625,0.00024,7]
[398509428,1765765853515,-198.08824625,0.00024,10]
[398509429,1765765853525,-1730.59850683,0.00024,2]
[398509430,1765765853536,-464.33781745,0.00024,2]
[398509431,1765765853546,-1016.0,0.00024,2]
[398509432,1765765853557,-360.36278941,0.00024001,71]
[398509433,1765765853567,-400.0,0.000241,7]
[398509434,1765765853577,-1921.03,0.00024109,2]
[398509435,1765765853586,-750.0,0.0002411,2]
[398509436,1765765853597,-1560.0,0.00024125,2]
[398509437,1765765853606,-283896.11342453,0.00024142,2]
[398509438,1765765853616,-17925.11,0.000242,2]
[398509439,1765765853627,-1921.03,0.00024383,2]
[398509440,1765765853638,-415.0,0.000244,2]
[398509441,1765765853648,-26347.86,0.000244,2]
[398509442,1765765853658,-2000.00665975,0.00024456,2]
[398509443,1765765853668,-165.68905798,0.00024463,79]
[398509444,1765765853678,-8431.18961027,0.00024476,2]
[398509445,1765765853688,-200.0,0.000245,120]
[398509446,1765765853698,-1007.23301184,0.000245,2]
[398509447,1765765853708,-313.60403607,0.00024556,79]
[398509448,1765765853718,-360.36278941,0.00024556,79]
[398509449,1765765853727,-411.41,0.000246,14]
[398509450,1765765853737,-1921.03,0.00024657,2]
[398509451,1765765853747,-901.53187892,0.00024658,2]
[398509452,1765765853757,-152.87769784,0.00024658,2]
[398509453,1765765853766,-152.87769784,0.00024658,2]
[398509454,1765765853775,-152.87769784,0.00024658,2]
[398509455,1765765853785,-152.87769784,0.00024658,2]
[398509456,1765765853795,-152.87769784,0.00024658,2]
[398509457,1765765853805,-152.87769784,0.00024658,2]
[398509458,1765765853815,-152.87769784,0.00024658,2]
[398509459,1765765853825,-152.87769784,0.00024658,2]
[398509460,1765765853835,-152.87769784,0.00024658,2]
[398509461,1765765853845,-152.87769784,0.00024658,2]
[398509462,1765765853855,-152.87769784,0.00024658,2]
[398509463,1765765853864,-152.87769784,0.00024658,2]
[398509464,1765765853874,-152.87769784,0.00024658,2]
[398509465,1765765853884,-152.87769784,0.00024658,2]
[398509466,1765765853894,-152.86242382,0.00024658,2]
[398509467,1765765853904,-152.86242382,0.00024658,2]
[398509468,1765765853914,-152.86242382,0.00024658,2]
[398509469,1765765853924,-152.86242382,0.00024658,2]
[398509470,1765765853934,-152.86242382,0.00024658,2]
[398509471,1765765853944,-152.86242382,0.00024658,2]
[398509472,1765765853954,-152.86242382,0.00024658,2]
[398509473,1765765853963,-152.86242382,0.00024658,2]
[398509474,1765765853974,-152.86242382,0.00024658,2]
[398509475,1765765853983,-152.86242382,0.00024658,2]
[398509476,1765765853993,-152.86242382,0.00024658,2]
[398509477,1765765854002,-152.86242382,0.00024658,2]
[398509478,1765765854012,-152.86242382,0.00024658,2]
[398509479,1765765854023,-152.86242382,0.00024658,2]
[398509480,1765765854032,-152.86242382,0.00024658,2]
[398509481,1765765854043,-152.86242382,0.00024658,2]
[398509482,1765765854053,-152.86242382,0.00024658,2]
[398509483,1765765854062,-152.86242382,0.00024658,2]
[398509484,1765765854072,-152.86242382,0.00024658,2]
[398509485,1765765854082,-152.86242382,0.00024658,2]
[398509486,1765765854092,-152.86242382,0.00024658,2]
[398509487,1765765854101,-152.86242382,0.00024658,2]
[398509488,1765765854111,-152.86242382,0.00024658,2]
[398509489,1765765854121,-762.0,0.00024658,2]
[398509490,1765765854131,-1660.0,0.00024673,2]
[398509491,1765765854140,-762.0,0.00024795,2]
[398509492,1765765854150,-384461.44288,0.000249,2]
[398509493,1765765854159,-1921.03,0.00024931,3]
[398509494,1765765854168,-762.0,0.00024932,2]
[398509495,1765765854178,-1195.726295,0.0002498,5]
[398509496,1765765854188,-1488067.07945913,0.00025,2]
[398509497,1765765860025,213.11522006,9.444e-05,2]
[398509498,1765765860944,4821.53124919,0.0001348,2]
[398509499,1765765860967,178.46875081,0.0001348,2]
[398509500,1765765863496,5000.0,0.0001348,2]
[398509502,1765765867534,500.0,0.00013273,2]
[398509503,1765765868833,500.0,0.00013273,2]
[398509504,1765765873983,213.32824398,9.444e-05,2]
[398509505,1765765887459,5000.0,0.0001348,2]
[398509506,1765765888671,150.0,8.823e-05,2]
[398509507,1765765888857,150.0,9.243e-05,2]
[398509508,1765765889261,150.0,9.663e-05,2]
[398509509,1765765889665,189.29,0.00010083,2]
[398509510,1765765890048,236.62,0.00010503,2]
[398509511,1765765890455,283.94,0.00010923,2]
[398509512,1765765890879,331.26,0.00011344,2]
[398509513,1765765891265,378.59,0.00011764,2]
[398509514,1765765891673,425.91,0.00012184,2]
[398509515,1765765892082,473.24,0.00012604,2]
[398509517,1765765909725,1017.83175602,0.0001348,2]
[398509518,1765765909746,3982.16824398,0.0001348,2]
[398509519,1765765924886,500.0,0.00013273,2]
[398509520,1765765931975,5000.0,0.0001348,2]
[398509521,1765765933803,500.0,0.00013273,2]
[398509522,1765765934167,17.84175602,0.00013273,2]
[398509523,1765765934189,482.15824398,0.00013273,2]
[398509524,1765765936415,500.0,0.00013273,2]
[398509525,1765765936780,500.0,0.00013273,2]
[398509526,1765765937109,500.0,0.00013273,2]
[398509527,1765765953824,5000.0,0.0001348,2]
[398509528,1765765961779,150.0,6.838e-05,2]
[398509529,1765765962174,150.0,7.163e-05,2]
[398509530,1765765962577,150.0,7.489e-05,2]
[398509531,1765765962971,150.0,7.815e-05,2]
[398509532,1765765963411,150.0,8.14e-05,2]
[398509533,1765765963474,270.63051002,0.00013427,2]
[398509534,1765765963829,150.0,8.466e-05,2]
[398509535,1765765964269,166.37,8.791e-05,2]
[398509536,1765765964684,190.13,9.117e-05,2]
[398509537,1765765965214,213.9,9.443e-05,2]
[398509538,1765765965765,237.67,9.768e-05,2]
[398509539,1765765975637,1039.151246,0.0001348,2]
[398509540,1765765977242,-3960.848754,0.0001348,2]
[398509541,1765765982348,152.04,0.000111,2]
[398509542,1765765982645,152.04,0.000115,2]
[398509543,1765765983086,152.04,0.000119,2]
[398509544,1765765983519,152.04,0.000123,2]
[398509545,1765765983746,152.04,0.000128,2]
[398509546,1765765984024,152.04,0.000132,2]
[398509547,1765765991081,500.0,0.00013273,2]
[398509548,1765765991880,500.0,0.00013273,2]
[398509549,1765765994959,166.072492,0.00013427,2]
[398509550,1765765994983,83.56663573,0.00013427,2]
[398509551,1765765998300,5000.0,0.0001348,2]
[398509552,1765765999200,500.0,0.00013273,2]
[398509553,1765765999633,502.37398164,0.00013273,2]
[398509554,1765766001123,500.0,0.00013273,2]
[398509555,1765766020362,3414.06938263,0.0001348,2]
[398509556,1765766026005,202.5404951,0.00013343,2]
[398509557,1765766030617,150.0,7.51e-05,2]
[398509558,1765766031119,254.71,7.868e-05,2]
[398509559,1765766031705,382.06,8.226e-05,2]
[398509560,1765766031882,509.42,8.583e-05,2]
[398509561,1765766032356,636.77,8.941e-05,2]
[398509562,1765766032693,764.13,9.299e-05,2]
[398509563,1765766033110,891.48,9.656e-05,2]
[398509564,1765766033541,1018.84,0.00010014,2]
[398509565,1765766033950,1146.19,0.00010371,2]
[398509566,1765766034439,1273.55,0.00010729,2]
[398509569,1765766044393,152.04,0.000111,2]
[398509570,1765766044802,152.04,0.000113,2]
[398509571,1765766045211,152.04,0.000115,2]
[398509572,1765766045497,152.04,0.000117,2]
[398509573,1765766045840,152.04,0.000119,2]
[398509574,1765766046353,152.04,0.000121,2]
[398509575,1765766046518,152.04,0.000123,2]
[398509576,1765766046787,152.04,0.000126,2]
[398509577,1765766047067,152.04,0.000128,2]
[398509578,1765766047415,152.04,0.00013,2]
[398509579,1765766047614,152.04,0.000132,2]
[398509580,1765766047934,152.04,0.000134,2]
[398509581,1765766056067,500.0,0.00013273,2]
[398509584,1765766105120,157.07,0.00012,2]
[398509585,1765766106023,150.0,7.506e-05,2]
[398509586,1765766106441,266.66,7.863e-05,2]
[398509587,1765766106849,399.99,8.221e-05,2]
[398509588,1765766107720,533.32,8.578e-05,2]
[398509589,1765766108141,666.64,8.935e-05,2]
[398509590,1765766108683,799.97,9.293e-05,2]
[398509591,1765766109025,933.3,9.65e-05,2]
[398509592,1765766109435,1066.63,0.00010008,2]
[398509593,1765766109839,1199.96,0.00010365,2]
[398509594,1765766110281,1333.29,0.00010722,2]
[398509597,1765766165887,156.0,0.00012,2]
[398509598,1765766181946,150.0,7.479e-05,2]
[398509599,1765766182389,218.02,7.836e-05,2]
[398509600,1765766182895,327.03,8.192e-05,2]
[398509601,1765766183272,436.04,8.548e-05,2]
[398509602,1765766183887,545.06,8.904e-05,2]
[398509603,1765766184095,654.07,9.26e-05,2]
[398509604,1765766184507,6.96,9.616e-05,2]
[398509605,1765766184545,756.12,9.616e-05,2]
[398509606,1765766184913,872.09,9.973e-05,2]
[398509607,1765766185332,981.1,0.00010329,2]
[398509608,1765766185772,1090.11,0.00010685,2]
[398509609,1765766210819,5000.0,0.000121,2]
[398509610,1765766212112,-673.56321714,0.00012254,2]
[398509611,1765766212572,-94.21129666,0.00012254,2]
[398509613,1765766215446,-155.87,0.000123,2]
[398509615,1765766225674,156.02,0.00012,2]
[398509616,1765766228382,-156.02,0.000124,2]
[398509617,1765766230284,-208.42607273,0.000126,2]
[398509618,1765766231528,-35.72839593,0.000126,2]